fUSD/lending_fUSD_20260318
["ID","MTS","AMOUNT","RATE_DAILY","PERIOD"]
[408523006,1773818942710,-500.0,0.00047739,120]
[408523007,1773818942759,-500.0,0.00047739,120]
[408523008,1773818942810,-500.0,0.00047739,120]
[408523009,1773818942862,-500.0,0.00047739,120]
[408523010,1773818942930,-647.2002183,0.00047739,120]
[408523011,1773818942981,-310.50788748,0.00047739,120]
[408523012,1773818943035,-264.66766487,0.00047739,120]
[408523013,1773818943090,-274.84218817,0.00047739,120]
[408523014,1773818943146,-500.0,0.00047739,120]
[408523015,1773818943203,-350.18972559,0.00047739,120]
[408523016,1773818943257,-500.0,0.00047739,120]
[408523017,1773818943313,-385.70914712,0.00047739,120]
[408523018,1773818943367,-500.0,0.00047739,120]
[408523019,1773818943427,-500.0,0.00047739,120]
[408523020,1773818943481,-500.0,0.00047739,120]
[408523021,1773818943536,-500.0,0.00047739,120]
[408523022,1773818943587,-500.0,0.00047739,120]
[408523023,1773818943638,-233.9943824,0.00047739,120]
[408523024,1773818943690,-306.14441247,0.00047739,120]
[408523025,1773818943740,-500.0,0.00047739,120]
[408523026,1773818943790,-500.0,0.00047739,120]
[408523027,1773818943843,-261.33535201,0.00047739,120]
[408523028,1773818943895,-500.0,0.00047739,120]
[408523029,1773818943946,-237.76479186,0.00047739,120]
[408523030,1773818944003,-500.0,0.00047739,120]
[408523031,1773818944224,-500.0,0.00047739,120]
[408523032,1773818944274,-500.0,0.00047739,120]
[408523033,1773818944324,-272.95377752,0.00047739,120]
[408523034,1773818944378,-500.0,0.00047739,120]
[408523035,1773818944433,-500.0,0.00047739,120]
[408523036,1773818944487,-500.0,0.00047739,120]
[408523037,1773818944539,-500.0,0.00047739,120]
[408523038,1773818944590,-881.86,0.00047739,120]
[408523039,1773818944644,-242.59369943,0.00047739,120]
[408523040,1773818944700,-500.0,0.00047739,120]
[408523041,1773818944754,-326.92599065,0.00047739,120]
[408523042,1773818944806,-881.86,0.00047739,120]
[408523043,1773818944858,-500.0,0.00047739,120]
[408523044,1773818944910,-881.86,0.00047739,120]
[408523045,1773818944963,-500.0,0.00047739,120]
[408523046,1773818945018,-881.86,0.00047739,120]
[408523047,1773818945090,-304.38072757,0.00047739,120]
[408523048,1773818945155,-500.0,0.00047739,120]
[408523049,1773818945222,-881.86,0.00047739,120]
[408523050,1773818945284,-420.70289187,0.00047739,120]
[408523051,1773818945345,-881.86,0.00047739,120]
[408523052,1773818945407,-881.86,0.00047739,120]
[408523053,1773818945468,-881.86,0.00047739,120]
[408523054,1773818945529,-881.86,0.00047739,120]
[408523055,1773818945592,-881.86,0.00047739,120]
[408523056,1773818945654,-45820.27,0.00047739,120]
[408523057,1773818945717,-881.86,0.00047739,120]
[408523058,1773818945776,-312.84806054,0.00047739,120]
[408523059,1773818945839,-45820.27,0.00047739,120]
[408523060,1773818945900,-881.86,0.00047739,120]
[408523061,1773818945962,-45820.27,0.00047739,120]
[408523062,1773818946026,-881.86,0.00047739,120]
[408523063,1773818946092,-500.0,0.00047739,120]
[408523064,1773818946156,-45820.27,0.00047739,120]
[408523065,1773818946223,-881.86,0.00047739,120]
[408523066,1773818946287,-280.63095794,0.00047739,120]
[408523067,1773818946348,-45820.27,0.00047739,120]
[408523068,1773818946410,-881.86,0.00047739,120]
[408523069,1773818946473,-45820.27,0.00047739,120]
[408523070,1773818946537,-881.86,0.00047739,120]
[408523071,1773818946604,-881.86,0.00047739,120]
[408523072,1773818946668,-258.38162971,0.00047739,120]
[408523073,1773818946730,-45820.27,0.00047739,120]
[408523074,1773818946792,-881.86,0.00047739,120]
[408523075,1773818946854,-881.86,0.00047739,120]
[408523076,1773818946916,-45820.27,0.00047739,120]
[408523077,1773818946977,-881.86,0.00047739,120]
[408523078,1773818947041,-45820.27,0.00047739,120]
[408523079,1773818947103,-273.06552864,0.00047739,120]
[408523080,1773818947165,-881.86,0.00047739,120]
[408523081,1773818947228,-45820.27,0.00047739,120]
[408523082,1773818947290,-881.86,0.00047739,120]
[408523083,1773818947353,-306.22478931,0.00047739,120]
[408523084,1773818947416,-45820.27,0.00047739,120]
[408523085,1773818947481,-881.86,0.00047739,120]
[408523086,1773818947545,-45820.27,0.00047739,120]
[408523087,1773818947610,-882.08561345,0.00047739,120]
[408523088,1773818947677,-45820.27,0.00047739,120]
[408523089,1773818947746,-45820.27,0.00047739,120]
[408523090,1773818947810,-294.9231361,0.00047739,120]
[408523091,1773818947872,-45820.27,0.00047739,120]
[408523092,1773818947933,-45820.27,0.00047739,120]
[408523093,1773818947997,-45820.27,0.00047739,120]
[408523094,1773818948078,-835.62,0.00047739,120]
[408523095,1773818948151,-45820.27,0.00047739,120]
[408523096,1773818948216,-835.62,0.00047739,120]
[408523097,1773818948287,-261.50799118,0.00047739,120]
[408523098,1773818948349,-45820.27,0.00047739,120]
[408523099,1773818948411,-835.62,0.00047739,120]
[408523100,1773818948473,-45820.27,0.00047739,120]
[408523101,1773818948532,-835.62,0.00047739,120]
[408523102,1773818948593,-45820.27,0.00047739,120]
[408523103,1773818948653,-835.62,0.00047739,120]
[408523104,1773818948712,-45820.27,0.00047739,120]
[408523105,1773818948770,-835.62,0.00047739,120]
[408523106,1773818948833,-328.90356926,0.00047739,120]
[408523107,1773818948893,-45820.27,0.00047739,120]
[408523108,1773818948954,-835.62,0.00047739,120]
[408523109,1773818949028,-45820.38140092,0.00047739,120]
[408523110,1773818949095,-158.79120649,0.00047739,120]
[408523111,1773818949158,-835.62,0.00047739,120]
[408523112,1773818949221,-835.62,0.00047739,120]
[408523113,1773818949282,-835.62,0.00047739,120]
[408523114,1773818949344,-835.62,0.00047739,120]
[408523115,1773818949417,-835.62,0.00047739,120]
[408523116,1773818949499,-500.0,0.00047739,120]
[408523117,1773818949732,-500.0,0.00047739,120]
[408523118,1773818949798,-835.62,0.00047739,120]
[408523119,1773818949862,-500.0,0.00047739,120]
[408523120,1773818949941,-500.0,0.00047739,120]
[408523121,1773818950015,-835.62,0.00047739,120]
[408523122,1773818950083,-245.91692184,0.00047739,120]
[408523123,1773818950144,-603.03756227,0.00047739,120]
[408523124,1773818950202,-835.62,0.00047739,120]
[408523125,1773818950255,-835.62,0.00047739,120]
[408523126,1773818950311,-276.11626802,0.00047739,120]
[408523127,1773818950367,-835.62,0.00047739,120]
[408523128,1773818950429,-835.62,0.00047739,120]
[408523129,1773818950487,-835.62,0.00047739,120]
[408523130,1773818950542,-835.62,0.00047739,120]
[408523131,1773818950611,-835.62,0.00047739,120]
[408523132,1773818950671,-435.85618305,0.00047739,120]
[408523133,1773818950729,-835.62,0.00047739,120]
[408523134,1773818950787,-500.0,0.00047739,120]
[408523135,1773818950848,-835.62,0.00047739,120]
[408523136,1773818950907,-558.25317291,0.00047739,120]
[408523137,1773818950966,-500.0,0.00047739,120]
[408523138,1773818951026,-500.0,0.00047739,120]
[408523139,1773818951090,-835.64915488,0.00047739,120]
[408523140,1773818951151,-500.0,0.00047739,120]
[408523141,1773818951215,-500.0,0.00047739,120]
[408523142,1773818951279,-500.0,0.00047739,120]
[408523143,1773818951340,-353.9001287,0.00047739,120]
[408523144,1773818951403,-232.26535172,0.00047739,120]
[408523145,1773818951470,-500.0,0.00047739,120]
[408523146,1773818951531,-500.0,0.00047739,120]
[408523147,1773818951591,-181.20486683,0.00047739,120]
[408523148,1773818951651,-500.0,0.00047739,120]
[408523149,1773818951711,-500.0,0.00047739,120]
[408523150,1773818951771,-178.93321297,0.00047739,120]
[408523151,1773818951832,-500.0,0.00047739,120]
[408523152,1773818951897,-500.0,0.00047739,120]
[408523153,1773818951956,-500.0,0.00047739,120]
[408523154,1773818952023,-200.46126525,0.00047739,120]
[408523155,1773818952090,-500.0,0.00047739,120]
[408523156,1773818952155,-630.76199337,0.00047739,120]
[408523157,1773818952215,-169.29487477,0.00047739,120]
[408523158,1773818952276,-628.81102725,0.00047739,120]
[408523159,1773818952336,-153.73912029,0.00047739,120]
[408523160,1773818952402,-517.43998948,0.00047739,120]
[408523161,1773818952461,-288.68071569,0.00047739,120]
[408523162,1773818952528,-227.516448,0.00047739,120]
[408523163,1773818952593,-341.85600871,0.00047739,120]
[408523164,1773818952653,-301.16759307,0.00047739,120]
[408523165,1773818952711,-199.60119603,0.00047739,120]
[408523166,1773818952783,-500.0,0.00047739,120]
[408523167,1773818952857,-340.49124463,0.00047739,120]
[408523168,1773818952918,-500.0,0.00047739,120]
[408523169,1773818952980,-500.0,0.00047739,120]
[408523170,1773818953044,-500.0,0.00047739,120]
[408523171,1773818953111,-500.0,0.00047739,120]
[408523172,1773818953180,-500.0,0.00047739,120]
[408523173,1773818953252,-507.91949815,0.00047739,120]
[408523174,1773818953325,-546.62849521,0.00047739,120]
[408523175,1773818953389,-325.53653985,0.00047739,120]
[408523176,1773818953450,-500.0,0.00047739,120]
[408523177,1773818953514,-500.0,0.00047739,120]
[408523178,1773818953576,-500.0,0.00047739,120]
[408523179,1773818953639,-500.0,0.00047739,120]
[408523180,1773818953700,-500.0,0.00047739,120]
[408523181,1773818953762,-500.0,0.00047739,120]
[408523182,1773818953825,-500.0,0.00047739,120]
[408523183,1773818953886,-500.0,0.00047739,120]
[408523184,1773818953947,-500.0,0.00047739,120]
[408523185,1773818954013,-500.0,0.00047739,120]
[408523186,1773818954084,-500.0,0.00047739,120]
[408523187,1773818954148,-502.81034244,0.00047739,120]
[408523188,1773818954212,-266.76575476,0.00047739,120]
[408523189,1773818954272,-588.93,0.00047739,120]
[408523190,1773818954331,-673.77,0.00047739,120]
[408523191,1773818954390,-673.77,0.00047739,120]
[408523192,1773818954449,-673.77,0.00047739,120]
[408523193,1773818954508,-673.77,0.00047739,120]
[408523194,1773818954567,-673.77,0.00047739,120]
[408523195,1773818954628,-673.77,0.00047739,120]
[408523196,1773818954688,-673.77,0.00047739,120]
[408523197,1773818954750,-673.77,0.00047739,120]
[408523198,1773818954810,-673.77,0.00047739,120]
[408523199,1773818954871,-673.77,0.00047739,120]
[408523200,1773818954933,-673.77,0.00047739,120]
[408523201,1773818955202,-673.77,0.00047739,120]
[408523202,1773818955277,-673.77,0.00047739,120]
[408523203,1773818955365,-673.77,0.00047739,120]
[408523204,1773818955465,-673.77,0.00047739,120]
[408523205,1773818955533,-673.77,0.00047739,120]
[408523206,1773818955614,-673.77,0.00047739,120]
[408523207,1773818955677,-673.77,0.00047739,120]
[408523208,1773818955740,-673.77,0.00047739,120]
[408523209,1773818955807,-673.77,0.00047739,120]
[408523210,1773818955870,-673.77,0.00047739,120]
[408523211,1773818955934,-673.77,0.00047739,120]
[408523212,1773818955995,-673.77,0.00047739,120]
[408523213,1773818956055,-674.00783568,0.00047739,120]
[408523214,1773818956119,-50000.0,0.00047739,57]
[408523215,1773818956180,-12375.64463396,0.00047739,60]
[408523216,1773818956241,-1959.363274,0.00047739,120]
[408523217,1773818956302,-1350.0,0.00047739,120]
[408523218,1773818956363,-500.0,0.00047739,120]
[408523219,1773818956424,-507.53872766,0.00047739,120]
[408523220,1773818956485,-500.0,0.00047739,120]
[408523221,1773818956550,-9996.822991,0.00047739,30]
[408523222,1773818956612,-500.0,0.00047739,120]
[408523223,1773818956674,-470.1011413,0.00047739,120]
[408523224,1773818956736,-210.63910883,0.00047739,30]
[408523225,1773818956797,-753.19983871,0.00047739,30]
[408523226,1773818956862,-500.0,0.00047739,120]
[408523227,1773818956926,-500.0,0.00047739,120]
[408523228,1773818956990,-500.0,0.00047739,120]
[408523229,1773818957055,-491.00000002,0.00047739,120]
[408523230,1773818957118,-499903.78909703,0.00047739,30]
[408523231,1773818957184,-701329.59867,0.00047739,120]
[408523232,1773818957250,-1250.0,0.00047739,120]
[408523233,1773818957316,-1250.0,0.00047739,120]
[408523234,1773818957381,-1250.0,0.00047739,120]
[408523235,1773818957448,-1250.0,0.00047739,120]
[408523236,1773818957511,-1250.0,0.00047739,120]
[408523237,1773818957576,-1250.0,0.00047739,120]
[408523238,1773818957638,-1250.0,0.00047739,120]
[408523239,1773818957700,-1250.0,0.00047739,120]
[408523240,1773818957765,-1250.0,0.00047739,120]
[408523241,1773818957830,-1250.0,0.00047739,120]
[408523242,1773818957894,-1250.0,0.00047739,120]
[408523243,1773818957957,-1250.0,0.00047739,120]
[408523244,1773818958022,-1250.0,0.00047739,120]
[408523245,1773818958087,-1250.0,0.00047739,120]
[408523246,1773818958151,-1250.0,0.00047739,120]
[408523247,1773818958218,-1250.0,0.00047739,120]
[408523248,1773818958283,-1250.0,0.00047739,120]
[408523249,1773818958346,-1250.0,0.00047739,120]
[408523250,1773818958411,-1250.0,0.00047739,120]
[408523251,1773818958475,-1250.0,0.00047739,120]
[408523252,1773818958540,-1250.0,0.00047739,120]
[408523253,1773818958603,-1250.0,0.00047739,120]
[408523254,1773818958665,-1250.0,0.00047739,120]
[408523255,1773818958728,-1250.0,0.00047739,120]
[408523256,1773818958788,-610.44819336,0.00047739,120]
[408523257,1773818958848,-500.0,0.00047739,30]
[408523258,1773818958909,-500.0,0.00047739,30]
[408523259,1773818958969,-500.0,0.00047739,30]
[408523260,1773818959036,-500.0,0.00047739,30]
[408523261,1773818959100,-436.02623845,0.00047739,30]
[408523262,1773818959164,-2119.76,0.00047739,120]
[408523263,1773818959227,-2119.76,0.00047739,120]
[408523264,1773818959291,-2119.76,0.00047739,120]
[408523265,1773818959356,-2119.76,0.00047739,120]
[408523266,1773818959421,-2119.76,0.00047739,120]
[408523267,1773818959484,-2119.76,0.00047739,120]
[408523268,1773818959554,-2119.76,0.00047739,120]
[408523269,1773818959621,-2119.76,0.00047739,120]
[408523270,1773818959687,-2119.76,0.00047739,120]
[408523271,1773818959749,-2119.76,0.00047739,120]
[408523272,1773818959811,-2119.76,0.00047739,120]
[408523273,1773818959872,-2119.76,0.00047739,120]
[408523274,1773818959935,-2119.76,0.00047739,120]
[408523275,1773818959995,-2119.76,0.00047739,120]
[408523276,1773818960056,-2119.76,0.00047739,120]
[408523277,1773818960118,-2119.76,0.00047739,120]
[408523278,1773818960184,-2119.76,0.00047739,120]
[408523279,1773818960248,-2119.76,0.00047739,120]
[408523280,1773818960311,-2119.76,0.00047739,120]
[408523281,1773818960373,-2119.76,0.00047739,120]
[408523282,1773818960432,-2119.76,0.00047739,120]
[408523283,1773818960644,-2119.76,0.00047739,120]
[408523284,1773818960707,-2119.76,0.00047739,120]
[408523285,1773818960771,-2119.98154759,0.00047739,120]
[408523286,1773818960842,-500.0,0.00047739,120]
[408523287,1773818960905,-299.66665891,0.00047739,120]
[408523288,1773818960966,-500.0,0.00047739,120]
[408523289,1773818961031,-500.0,0.00047739,120]
[408523290,1773818961095,-500.0,0.00047739,120]
[408523291,1773818961159,-500.0,0.00047739,30]
[408523292,1773818961222,-5000.0,0.00047739,38]
[408523293,1773818961285,-50000.0,0.00047739,55]
[408523294,1773818961348,-50000.0,0.00047739,59]
[408523295,1773818961409,-500.0,0.00047739,120]
[408523296,1773818961469,-500.0,0.00047739,120]
[408523297,1773818961535,-500.0,0.00047739,120]
[408523298,1773818961592,-500.0,0.00047739,120]
[408523299,1773818961653,-500.0,0.00047739,120]
[408523300,1773818961722,-500.0,0.00047739,120]
[408523301,1773818961792,-500.0,0.00047739,120]
[408523302,1773818961855,-500.0,0.00047739,120]
[408523303,1773818961916,-500.0,0.00047739,120]
[408523304,1773818961977,-314.99965631,0.00047739,120]
[408523305,1773818962040,-26155.69655028,0.00047739,61]
[408523306,1773818962912,3355.25808647,0.00014104,2]
[408523307,1773818962936,2042.64395386,0.00014104,2]
[408523308,1773818964252,177.0,0.00011294,2]
[408523309,1773818964341,177.0,0.00012294,2]
[408523310,1773818964495,177.0,0.00013294,2]
[408523311,1773818964812,365.71,0.00022802,120]
[408523312,1773818964910,731.42,0.00024194,120]
[408523313,1773818965019,1097.14,0.00025585,120]
[408523314,1773818965132,1462.85,0.00026977,120]
[408523315,1773818968639,300.0,0.00014203,2]
[408523316,1773818970063,421.0,0.0003013,120]
[408523317,1773818970857,1453.0,0.0003013,120]
[408523318,1773818971728,189.0,0.0003013,120]
[408523319,1773818972443,1379.0,0.0003013,120]
[408523320,1773818974441,244.0,0.0003013,120]
[408523321,1773818975229,418.0,0.0003013,120]
[408523322,1773818976161,502.79571917,0.0003013,120]
[408523323,1773818981299,345.76,0.00022391,120]
[408523324,1773818981691,691.53,0.00023758,120]
[408523325,1773818982036,1037.29,0.00025124,120]
[408523326,1773818982418,1383.06,0.00026491,120]
[408523327,1773818982894,1728.82,0.00027858,120]
[408523328,1773818983501,2074.59,0.00029224,120]
[408523329,1773818991780,1000.0,0.00030137,120]
[408523330,1773819000743,150.0,0.00018946,120]
[408523331,1773819001203,300.0,0.00014203,2]
[408523332,1773819001424,1200.0,0.00014203,2]
[408523333,1773819001560,241.90905061,0.00018946,120]
[408523334,1773819002384,150.0,0.00014203,2]
[408523335,1773819003333,198.52,0.00014194,2]
[408523336,1773819004552,277.84604614,0.00014194,2]
[408523337,1773819004576,5000.01,0.00014194,2]
[408523338,1773819008894,-317.69395386,0.00014194,2]
[408523339,1773819014087,306.16,0.00022396,120]
[408523340,1773819014702,612.32,0.00023763,120]
[408523341,1773819014876,918.48,0.0002513,120]
[408523342,1773819015263,1224.63,0.00026497,120]
[408523343,1773819015654,1530.79,0.00027864,120]
[408523344,1773819016065,1836.95,0.00029231,120]
[408523348,1773819031403,-789.06159669,0.00014104,2]
[408523349,1773819031414,-114536.02480331,0.00014104,2]
[408523350,1773819031425,-500.0,0.00014204,2]
[408523351,1773819031435,-500.0,0.00014204,2]
[408523352,1773819031444,-1073.2852,0.00014204,2]
[408523353,1773819031453,-177.0,0.00014294,2]
[408523354,1773819031463,-500.0,0.00014304,2]
[408523355,1773819031472,-32970.7912,0.00014304,2]
[408523356,1773819031482,-1000.0,0.00014304,2]
[408523357,1773819031492,-166.6,0.00014331,2]
[408523358,1773819031502,-500.0,0.00014404,2]
[408523359,1773819031512,-500.0,0.00014404,2]
[408523360,1773819031521,-501.9337895,0.00014404,2]
[408523361,1773819031531,-500.0,0.00014404,2]
[408523362,1773819031541,-515.52448038,0.00014404,2]
[408523364,1773819031550,-186.00814132,0.00014498,2]
[408523365,1773819031560,-500.0,0.00014498,2]
[408523367,1773819031570,-337.74702835,0.00014498,2]
[408523369,1773819031580,-500.0,0.00014498,2]
[408523371,1773819031589,-372.90496843,0.00014498,2]
[408523372,1773819031598,-500.0,0.00014498,2]
[408523373,1773819031607,-334.37345073,0.00014498,2]
[408523375,1773819031616,-280.12452389,0.00014498,2]
[408523376,1773819031627,-500.0,0.00014498,2]
[408523377,1773819031638,-183.28462826,0.00014498,2]
[408523378,1773819031649,-8182.51,0.00014505,2]
[408523379,1773819031659,-500.0,0.00014516,2]
[408523380,1773819031670,-4838.78588482,0.00014526,2]
[408523381,1773819031681,-5397.90204024,0.00014526,2]
[408523382,1773819031692,-150.0,0.00014546,2]
[408523383,1773819031701,-455.11,0.00014574,2]
[408523384,1773819031721,-200.0,0.00014606,2]
[408523385,1773819031733,-1561.2259581,0.00014656,2]
[408523386,1773819031743,-1518.22785591,0.0001473,2]
[408523387,1773819031752,-166.6,0.00014899,2]
[408523388,1773819031762,-4838.78588482,0.00014948,2]
[408523389,1773819031781,-5397.90204024,0.00014948,2]
[408523390,1773819031794,-1852.42,0.00015176,2]
[408523391,1773819031804,-710.21256861,0.00015188,2]
[408523392,1773819031814,-783.02,0.0001523,2]
[408523393,1773819031823,-182.0,0.00015277,2]
[408523394,1773819031833,-177.0,0.00015294,2]
[408523395,1773819031843,-182.0,0.00015298,2]
[408523396,1773819031852,-350.0,0.00015314,3]
[408523397,1773819031861,-4838.78588482,0.00015369,2]
[408523398,1773819031871,-5397.90204024,0.00015369,2]
[408523399,1773819031881,-182.0,0.00015382,2]
[408523400,1773819031891,-182.0,0.00015456,2]
[408523401,1773819031900,-166.6,0.00015467,2]
[408523402,1773819031909,-783.02,0.00015504,2]
[408523403,1773819031921,-500.0,0.00015513,2]
[408523404,1773819031932,-500.0,0.00015514,2]
[408523405,1773819031941,-600.0,0.00015514,2]
[408523406,1773819031950,-182.0,0.00015537,2]
[408523407,1773819031960,-420.0,0.00015557,2]
[408523408,1773819031971,-499.0,0.00015624,2]
[408523409,1773819031983,-296.19696011,0.00015625,2]
[408523410,1773819031992,-195.0,0.00015625,2]
[408523411,1773819032002,-182.0,0.00015641,2]
[408523412,1773819032012,-182.0,0.00015664,2]
[408523413,1773819032021,-1076.0,0.00015737,2]
[408523414,1773819032030,-182.0,0.00015767,2]
[408523415,1773819032040,-871.0,0.00015778,2]
[408523416,1773819032050,-500.0,0.00015787,2]
[408523417,1773819032061,-4838.78588482,0.00015791,2]
[408523418,1773819032076,-5397.90204024,0.00015791,2]
[408523419,1773819032093,-2000.0,0.0001589,2]
[408523420,1773819032105,-2000.0,0.000159,2]
[408523421,1773819032115,-1344.0,0.0001591,2]
[408523422,1773819032125,-620.0,0.0001591,2]
[408523423,1773819032135,-500.0,0.00015916,2]
[408523424,1773819032146,-500.0,0.00015916,2]
[408523425,1773819032155,-500.0,0.00015916,2]
[408523426,1773819032164,-500.0,0.00015917,2]
[408523427,1773819032174,-500.0,0.00015917,2]
[408523428,1773819032184,-317.09816,0.0001594,2]
[408523429,1773819032193,-317.09817,0.0001594,2]
[408523430,1773819032202,-317.09816,0.0001594,2]
[408523431,1773819032211,-151.1511492,0.00016021,2]
[408523432,1773819032220,-166.6,0.00016035,2]
[408523433,1773819032230,-957.5693335,0.00016036,2]
[408523434,1773819032240,-47498.5492486,0.00016049,2]
[408523435,1773819032250,-3053.5169616,0.00016049,2]
[408523436,1773819032259,-500.0,0.00016073,2]
[408523437,1773819032268,-501.55270844,0.00016073,2]
[408523438,1773819032277,-878.89,0.00016093,2]
[408523439,1773819032291,-150.0,0.00016097,2]
[408523440,1773819032301,-152.85404086,0.00016097,2]
[408523441,1773819032312,-150.0,0.00016097,2]
[408523442,1773819032322,-150.0,0.00016097,2]
[408523443,1773819032331,-150.0,0.00016097,2]
[408523444,1773819032341,-158.80130543,0.00016097,2]
[408523445,1773819032350,-651.95,0.00016097,2]
[408523446,1773819032360,-406.15311428,0.00016099,2]
[408523447,1773819032369,-344.33152028,0.00016099,2]
[408523448,1773819032378,-500.0,0.00016099,2]
[408523449,1773819032388,-500.0,0.00016099,2]
[408523450,1773819032398,-500.0,0.00016099,2]
[408523451,1773819032407,-500.0,0.00016099,2]
[408523452,1773819032418,-250.29846196,0.00016099,2]
[408523453,1773819032429,-500.0,0.00016099,2]
[408523454,1773819032439,-313.47582292,0.00016099,2]
[408523455,1773819032448,-403087.06434899,0.000161,2]
[408523456,1773819032468,-4447.10351561,0.000161,2]
[408523457,1773819032479,-881.86849656,0.000161,2]
[408523459,1773819037414,-28008.64192608,0.000161,2]
[408523460,1773819037457,-558.38385669,0.000161,2]
[408523461,1773819037525,-825.01166221,0.000161,2]
[408523462,1773819037644,-514.90133109,0.000161,2]
[408523475,1773819040183,-1841.55,0.000161,2]
[408523485,1773819042411,-887.1555738,0.0001591,2]
[408523489,1773819045747,-1577.8444262,0.0001591,2]
[408523490,1773819045758,-1155.87210144,0.00016,2]
[408523491,1773819045768,-1101.17203842,0.000161,2]
[408523492,1773819045811,-6414.40577931,0.000161,2]
[408523504,1773819050880,271.09,0.00022051,120]
[408523505,1773819051461,542.18,0.00023397,120]
[408523506,1773819051604,813.27,0.00024743,120]
[408523507,1773819051962,1084.36,0.00026089,120]
[408523508,1773819052346,1355.45,0.00027435,120]
[408523509,1773819052727,1626.54,0.00028781,120]
[408523510,1773819053111,1897.63,0.00030126,120]
[408523511,1773819054142,902.81731487,0.00030137,120]
[408523512,1773819068364,900.0,0.000301,120]
[408523513,1773819068535,900.0,0.000301,120]
[408523514,1773819068687,900.0,0.000301,120]
[408523515,1773819069062,900.0,0.000301,120]
[408523516,1773819069329,900.0,0.000301,120]
[408523517,1773819069493,900.0,0.000301,120]
[408523518,1773819069667,900.0,0.000301,120]
[408523519,1773819070018,900.0,0.000301,120]
[408523520,1773819070186,900.0,0.000301,120]
[408523521,1773819070349,900.0,0.000301,120]
[408523523,1773819082228,229.69,0.00022057,120]
[408523524,1773819082606,459.37,0.00023404,120]
[408523525,1773819082970,689.06,0.0002475,120]
[408523526,1773819083375,918.75,0.00026096,120]
[408523527,1773819083745,1148.43,0.00027442,120]
[408523528,1773819084124,1378.12,0.00028789,120]
[408523529,1773819085011,1607.81,0.00030135,120]
[408523530,1773819086831,1789.0,0.0003013,120]
[408523531,1773819087709,180.0,0.0003013,120]
[408523532,1773819088405,1891.0,0.0003013,120]
[408523533,1773819111275,1073.42,0.00030137,120]
[408523534,1773819115296,194.61,0.00022055,120]
[408523535,1773819115658,389.21,0.00023401,120]
[408523536,1773819116055,583.82,0.00024747,120]
[408523537,1773819116468,778.43,0.00026093,120]
[408523538,1773819116842,973.04,0.00027439,120]
[408523539,1773819117235,1167.64,0.00028785,120]
[408523540,1773819117613,1362.25,0.00030131,120]
[408523541,1773819150424,178.0,0.0003013,120]
[408523542,1773819150974,164.89,0.00022051,120]
[408523543,1773819151343,329.77,0.00023396,120]
[408523544,1773819151715,494.66,0.00024742,120]
[408523545,1773819152115,659.54,0.00026088,120]
[408523546,1773819152494,824.43,0.00027434,120]
[408523547,1773819152865,989.31,0.0002878,120]
[408523548,1773819153280,1154.2,0.00030125,120]
[408523549,1773819184179,5000.0,0.00030136,120]
[408523550,1773819206351,217.37741007,0.0003013,120]